[Event "Gibraltar Masters 18th"]
[Site "Gibraltar"]
[Date "2020.01.26"]
[Round "6.53"]
[White "Bilguun, Sumiya"]
[Black "Beinoras, Mindaugas"]
[Result "1-0"]
[ECO "C55"]
[WhiteElo "2486"]
[BlackElo "2355"]
[PlyCount "91"]
[EventDate "2020.01.21"]
[EventType "swiss"]
[EventRounds "10"]
[EventCountry "GGB"]
[SourceTitle "BritBase"]
[Source "John Saunders"]
[SourceDate "2021.06.05"]
[SourceVersion "1"]
[SourceVersionDate "2021.06.05"]
[SourceQuality "1"]
[TimeControl "40/100:0"]
[WhiteClock "1:29:08"]
[BlackClock "0:44:40"]

1. e4 {[%emt 0:00:00]} e5 {[%emt 0:00:00]} 2. Bc4 {[%emt 0:00:00]} Nf6 {
[%emt 0:00:00]} 3. d3 {[%emt 0:00:00]} Nc6 {[%emt 0:00:00]} 4. Nf3 {[%emt 0:00:
00]} Be7 {[%emt 0:00:00]} 5. O-O {[%emt 0:00:00]} O-O {[%emt 0:00:00]} 6. Re1 {
[%emt 0:00:00]} d6 {[%emt 0:00:00]} 7. a4 {[%emt 0:00:00]} h6 {[%emt 0:00:00]}
8. Nbd2 {[%emt 0:00:00]} Na5 {[%emt 0:00:00]} 9. Ba2 {[%emt 0:00:00]} c5 {
[%emt 0:00:00]} 10. Nf1 {[%emt 0:00:00]} Re8 {[%emt 0:00:00]} 11. Ng3 {[%emt 0:
00:00]} Bf8 {[%emt 0:00:00]} 12. Nh4 {[%emt 0:00:00]} Be6 {[%emt 0:00:00]} 13.
Nhf5 {[%emt 0:00:00]} Bxa2 {[%emt 0:00:00]} 14. Rxa2 {[%emt 0:00:00]} Nc6 {
[%emt 0:00:00]} 15. c3 {[%emt 0:00:00]} Kh7 {[%emt 0:00:00]} 16. Qf3 {[%emt 0:
00:00]} g6 {[%emt 0:00:00]} 17. Ne3 {[%emt 0:00:00]} Bg7 {[%emt 0:00:00]} 18.
h4 {[%emt 0:00:00]} Qd7 {[%emt 0:00:00]} 19. h5 {[%emt 0:00:00]} Rad8 {[%emt 0:
00:00]} 20. Nd5 {[%emt 0:00:00]} Ng8 {[%emt 0:00:00]} 21. Be3 {[%emt 0:00:00]}
Rf8 {[%emt 0:00:00]} 22. b4 {[%emt 0:00:00]} cxb4 {[%emt 0:00:00]} 23. cxb4 {
[%emt 0:00:00]} Rc8 {[%emt 0:00:00]} 24. Raa1 {[%emt 0:00:00]} Nge7 {[%emt 0:
00:00]} 25. b5 {[%emt 0:00:00]} Nd4 {[%emt 0:00:00]} 26. Bxd4 {[%emt 0:00:00]}
Nxd5 {[%emt 0:00:00]} 27. Bxa7 {[%emt 0:00:00]} Ra8 {[%emt 0:15:56]} 28. exd5 {
[%emt 0:00:00]} Rxa7 {[%emt 0:00:00]} 29. Ra2 {[%emt 0:00:00]} Rc8 {[%emt 0:00:
00]} 30. hxg6+ {[%emt 0:00:00]} fxg6 {[%emt 0:00:00]} 31. Ne4 {[%emt 0:00:00]}
Rca8 {[%emt 0:00:00]} 32. Rea1 {[%emt 0:00:00]} Ra5 {[%emt 0:00:00]} 33. Qd1 {
[%emt 0:00:00]} Kh8 {[%emt 0:00:00]} 34. Qb3 {[%emt 0:00:00]} Bf8 {[%emt 0:00:
00]} 35. Rc1 {[%emt 0:00:00]} Be7 {[%emt 0:00:00]} 36. Rc4 {[%emt 0:00:00]} Bd8
{[%emt 0:00:00]} 37. Qb4 {[%emt 0:00:00]} Qg4 {[%emt 0:00:00]} 38. Qd2 {
[%emt 0:00:00]} Bg5 {[%emt 0:00:00]} 39. Qc2 {[%emt 0:00:00]} Bd8 {[%emt 0:00:
00]} 40. Nc5 {[%emt 0:00:00]} Qc8 {[%emt 0:00:00]} 41. Ne6 {[%emt 0:00:00]} Qd7
{[%emt 0:00:00]} 42. Qc1 {[%emt 0:00:00]} Bg5 {[%emt 0:00:00]} 43. Nxg5 {
[%emt 0:00:00]} hxg5 {[%emt 0:00:00]} 44. Qxg5 {[%emt 0:00:00]} Rxb5 {[%emt 0:
00:00]} 45. Qf6+ {[%emt 0:00:00]} Qg7 {[%emt 0:00:00]} 46. Qh4+ {[%emt 0:00:00]
} 1-0

[Event "Gibraltar Masters 18th"]
[Site "Gibraltar"]
[Date "2020.01.26"]
[Round "6.54"]
[White "Raja, Harshit"]
[Black "Borocz, Istvan"]
[Result "1-0"]
[ECO "B42"]
[WhiteElo "2482"]
[BlackElo "2337"]
[PlyCount "79"]
[EventDate "2020.01.21"]
[EventType "swiss"]
[EventRounds "10"]
[EventCountry "GGB"]
[SourceTitle "BritBase"]
[Source "John Saunders"]
[SourceDate "2021.06.05"]
[SourceVersion "1"]
[SourceVersionDate "2021.06.05"]
[SourceQuality "1"]
[TimeControl "40/100:0"]
[WhiteClock "0:06:45"]
[BlackClock "0:01:03"]

1. e4 {[%emt 0:00:00]} c5 {[%emt 0:00:00]} 2. Nf3 {[%emt 0:00:00]} e6 {[%emt 0:
00:00]} 3. d4 {[%emt 0:00:00]} cxd4 {[%emt 0:00:00]} 4. Nxd4 {[%emt 0:00:00]}
a6 {[%emt 0:00:00]} 5. Bd3 {[%emt 0:00:00]} Bc5 {[%emt 0:00:00]} 6. Nb3 {
[%emt 0:00:00]} Be7 {[%emt 0:00:00]} 7. Qg4 {[%emt 0:00:00]} g6 {[%emt 0:00:00]
} 8. Qe2 {[%emt 0:00:00]} d6 {[%emt 0:00:00]} 9. Nc3 {[%emt 0:00:00]} Nd7 {
[%emt 0:00:00]} 10. a4 {[%emt 0:00:00]} b6 {[%emt 0:00:00]} 11. O-O {[%emt 0:
00:00]} Qc7 {[%emt 0:00:00]} 12. f4 {[%emt 0:00:00]} Bf6 {[%emt 0:00:00]} 13.
e5 {[%emt 0:00:00]} Be7 {[%emt 0:00:00]} 14. exd6 {[%emt 0:06:35]} Bxd6 {
[%emt 0:00:00]} 15. Nd5 {[%emt 0:00:00]} Qb8 {[%emt 0:00:00]} 16. a5 {[%emt 0:
00:00]} Ne7 {[%emt 0:00:00]} 17. Nxe7 {[%emt 0:00:00]} Bxe7 {[%emt 0:00:00]}
18. axb6 {[%emt 0:00:00]} Nxb6 {[%emt 0:00:00]} 19. Na5 {[%emt 0:00:00]} Nd5 {
[%emt 0:00:00]} 20. Kh1 {[%emt 0:00:00]} Qc7 {[%emt 0:00:00]} 21. Be4 {[%emt 0:
00:00]} Rb8 {[%emt 0:00:00]} 22. f5 {[%emt 0:00:00]} Rb5 {[%emt 0:00:00]} 23.
fxe6 {[%emt 0:00:00]} Bxe6 {[%emt 0:00:00]} 24. c4 {[%emt 0:00:00]} Rxa5 {
[%emt 0:00:00]} 25. Rxa5 {[%emt 0:00:00]} Nb4 {[%emt 0:00:00]} 26. Rd5 {
[%emt 0:00:00]} Bxd5 {[%emt 0:00:00]} 27. cxd5 {[%emt 0:00:00]} O-O {[%emt 0:
00:00]} 28. Bh6 {[%emt 0:00:00]} Rd8 {[%emt 0:00:00]} 29. Qf3 {[%emt 0:00:00]}
Bf8 {[%emt 0:00:00]} 30. Bf4 {[%emt 0:00:00]} Bd6 {[%emt 0:00:00]} 31. Bd2 {
[%emt 0:00:00]} f5 {[%emt 0:00:00]} 32. Bxf5 {[%emt 0:00:00]} gxf5 {[%emt 0:00:
00]} 33. Qxf5 {[%emt 0:00:00]} Rf8 {[%emt 0:00:25]} 34. Qg4+ {[%emt 0:00:00]}
Qg7 {[%emt 0:00:00]} 35. Qe6+ {[%emt 0:00:00]} Rf7 {[%emt 0:00:00]} 36. Bh6 {
[%emt 0:00:00]} Qxh6 {[%emt 0:00:32]} 37. Qxf7+ {[%emt 0:00:00]} Kh8 {[%emt 0:
00:00]} 38. Qe8+ {[%emt 0:00:00]} Kg7 {[%emt 0:00:00]} 39. Rf7+ {[%emt 0:00:00]
} Kg6 {[%emt 0:00:00]} 40. Qe6+ {[%emt 0:00:00]} 1-0

[Event "Gibraltar Masters 18th"]
[Site "Gibraltar"]
[Date "2020.01.26"]
[Round "6.55"]
[White "Girya, Olga"]
[Black "Divya, Deshmukh"]
[Result "1-0"]
[ECO "E11"]
[WhiteElo "2477"]
[BlackElo "2322"]
[PlyCount "79"]
[EventDate "2020.01.21"]
[EventType "swiss"]
[EventRounds "10"]
[EventCountry "GGB"]
[SourceTitle "BritBase"]
[Source "John Saunders"]
[SourceDate "2021.06.05"]
[SourceVersion "1"]
[SourceVersionDate "2021.06.05"]
[SourceQuality "1"]
[TimeControl "40/100:0"]
[WhiteClock "0:02:29"]
[BlackClock "0:00:44"]

1. d4 {[%emt 0:00:00]} Nf6 {[%emt 0:00:00]} 2. c4 {[%emt 0:00:00]} e6 {[%emt 0:
00:00]} 3. Nf3 {[%emt 0:00:00]} Bb4+ {[%emt 0:00:00]} 4. Bd2 {[%emt 0:00:00]}
Qe7 {[%emt 0:00:00]} 5. g3 {[%emt 0:00:00]} Nc6 {[%emt 0:00:00]} 6. Nc3 {
[%emt 0:00:00]} Bxc3 {[%emt 0:00:00]} 7. Bxc3 {[%emt 0:00:00]} Ne4 {[%emt 0:00:
00]} 8. Rc1 {[%emt 0:00:00]} O-O {[%emt 0:00:00]} 9. Bg2 {[%emt 0:00:00]} d6 {
[%emt 0:00:00]} 10. d5 {[%emt 0:00:00]} Nxc3 {[%emt 0:00:00]} 11. Rxc3 {
[%emt 0:00:00]} Nb8 {[%emt 0:00:00]} 12. dxe6 {[%emt 0:00:00]} fxe6 {[%emt 0:
00:00]} 13. O-O {[%emt 0:00:00]} Nd7 {[%emt 0:00:00]} 14. Qd2 {[%emt 0:00:00]}
Nc5 {[%emt 0:00:00]} 15. Ng5 {[%emt 0:00:00]} a5 {[%emt 0:00:00]} 16. Ra3 {
[%emt 0:00:00]} Ra6 {[%emt 0:00:00]} 17. h4 {[%emt 0:00:00]} a4 {[%emt 0:00:00]
} 18. Qc2 {[%emt 0:00:00]} g6 {[%emt 0:00:00]} 19. Ne4 {[%emt 0:00:00]} Nxe4 {
[%emt 0:00:00]} 20. Bxe4 {[%emt 0:00:00]} Qg7 {[%emt 0:00:00]} 21. Rb1 {
[%emt 0:00:00]} Qe5 {[%emt 0:00:00]} 22. Re3 {[%emt 0:00:00]} Qh5 {[%emt 0:00:
00]} 23. Rd1 {[%emt 0:00:00]} Ra5 {[%emt 0:17:08]} 24. Rdd3 {[%emt 0:00:00]} b6
{[%emt 0:00:00]} 25. Qc3 {[%emt 0:00:00]} Bd7 {[%emt 0:00:00]} 26. b4 {[%emt 0:
00:00]} axb3 {[%emt 0:00:00]} 27. axb3 {[%emt 0:00:00]} Qe5 {[%emt 0:00:00]}
28. Qxe5 {[%emt 0:00:00]} Rxe5 {[%emt 0:00:00]} 29. b4 {[%emt 0:00:00]} Bc8 {
[%emt 0:00:00]} 30. f4 {[%emt 0:00:00]} Rh5 {[%emt 0:00:00]} 31. Ra3 {[%emt 0:
00:00]} Kg7 {[%emt 0:00:00]} 32. Ra7 {[%emt 0:00:00]} Rf7 {[%emt 0:00:00]} 33.
Bf3 {[%emt 0:00:00]} Rhf5 {[%emt 0:00:00]} 34. Bg4 {[%emt 0:00:00]} R5f6 {
[%emt 0:00:00]} 35. Rd3 {[%emt 0:00:00]} h6 {[%emt 0:00:00]} 36. e4 {[%emt 0:
00:00]} g5 {[%emt 0:00:00]} 37. Bh5 {[%emt 0:00:00]} Rd7 {[%emt 0:00:00]} 38.
e5 {[%emt 0:00:00]} Rf8 {[%emt 0:00:00]} 39. exd6 {[%emt 0:00:00]} Rfd8 {
[%emt 0:00:00]} 40. dxc7 {[%emt 0:00:00]} 1-0

[Event "Gibraltar Masters 18th"]
[Site "Gibraltar"]
[Date "2020.01.26"]
[Round "6.56"]
[White "Melia, Salome"]
[Black "Quintiliano Pinto, Renato R"]
[Result "0-1"]
[ECO "B96"]
[WhiteElo "2368"]
[BlackElo "2471"]
[PlyCount "190"]
[EventDate "2020.01.21"]
[EventType "swiss"]
[EventRounds "10"]
[EventCountry "GGB"]
[SourceTitle "BritBase"]
[Source "John Saunders"]
[SourceDate "2021.06.05"]
[SourceVersion "1"]
[SourceVersionDate "2021.06.05"]
[SourceQuality "1"]
[TimeControl "40/100:0"]
[WhiteClock "0:00:37"]
[BlackClock "0:13:48"]

1. e4 {[%emt 0:00:00]} c5 {[%emt 0:00:00]} 2. Nf3 {[%emt 0:00:00]} d6 {[%emt 0:
00:00]} 3. d4 {[%emt 0:00:00]} cxd4 {[%emt 0:00:00]} 4. Nxd4 {[%emt 0:00:00]}
Nf6 {[%emt 0:00:00]} 5. Nc3 {[%emt 0:00:00]} a6 {[%emt 0:00:00]} 6. Bg5 {
[%emt 0:00:00]} e6 {[%emt 0:00:00]} 7. f4 {[%emt 0:00:00]} Qc7 {[%emt 0:00:00]}
8. Bxf6 {[%emt 0:00:00]} gxf6 {[%emt 0:00:00]} 9. Qd2 {[%emt 0:00:00]} b5 {
[%emt 0:00:00]} 10. a3 {[%emt 0:00:00]} Bb7 {[%emt 0:00:00]} 11. O-O-O {
[%emt 0:00:00]} Nd7 {[%emt 0:00:00]} 12. Kb1 {[%emt 0:00:00]} Rc8 {[%emt 0:00:
00]} 13. Be2 {[%emt 0:00:00]} h5 {[%emt 0:00:00]} 14. Rhf1 {[%emt 0:00:00]} Nb6
{[%emt 0:00:00]} 15. Rf2 {[%emt 0:00:00]} Qc5 {[%emt 0:00:00]} 16. Nb3 {
[%emt 0:00:00]} Qc7 {[%emt 0:00:00]} 17. Qd4 {[%emt 0:00:00]} Be7 {[%emt 0:00:
00]} 18. Bd3 {[%emt 0:00:00]} Rg8 {[%emt 0:00:00]} 19. Rfd2 {[%emt 0:00:00]}
Nc4 {[%emt 0:00:00]} 20. Bxc4 {[%emt 0:00:00]} bxc4 {[%emt 0:00:00]} 21. Nc1 {
[%emt 0:00:00]} Qc5 {[%emt 0:00:00]} 22. Qxc5 {[%emt 0:00:00]} Rxc5 {[%emt 0:
00:00]} 23. g3 {[%emt 0:00:00]} h4 {[%emt 0:00:00]} 24. N1e2 {[%emt 0:00:00]}
f5 {[%emt 0:00:00]} 25. exf5 {[%emt 0:00:00]} Rxf5 {[%emt 0:00:00]} 26. Rd4 {
[%emt 0:00:00]} d5 {[%emt 0:00:00]} 27. Re1 {[%emt 0:00:00]} Rh5 {[%emt 0:00:
00]} 28. Rdd1 {[%emt 0:00:00]} hxg3 {[%emt 0:00:00]} 29. hxg3 {[%emt 0:00:00]}
Bc5 {[%emt 0:00:00]} 30. Rf1 {[%emt 0:00:00]} Rh2 {[%emt 0:00:00]} 31. f5 {
[%emt 0:00:00]} Ke7 {[%emt 0:00:00]} 32. fxe6 {[%emt 0:00:00]} fxe6 {[%emt 0:
00:00]} 33. Nf4 {[%emt 0:00:00]} Rxg3 {[%emt 0:00:00]} 34. Nfxd5+ {[%emt 0:00:
53]} exd5 {[%emt 0:00:00]} 35. Nxd5+ {[%emt 0:00:00]} Ke6 {[%emt 0:00:00]} 36.
Rfe1+ {[%emt 0:00:11]} Kf5 {[%emt 0:00:00]} 37. Ne7+ {[%emt 0:00:00]} Kg4 {
[%emt 0:00:00]} 38. Rd7 {[%emt 0:00:00]} Bf2 {[%emt 0:00:00]} 39. Rc1 {[%emt 0:
00:00]} Be4 {[%emt 0:00:00]} 40. Nd5 {[%emt 0:00:00]} Bd4 {[%emt 0:00:00]} 41.
Nb4 {[%emt 0:00:00]} Bh8 {[%emt 0:00:00]} 42. Rc7 {[%emt 0:00:00]} c3 {[%emt 0:
00:00]} 43. bxc3 {[%emt 0:00:00]} Bxc3 {[%emt 0:00:00]} 44. Rc4 {[%emt 0:00:00]
} Kf5 {[%emt 0:00:00]} 45. Rc5+ {[%emt 0:00:00]} Ke6 {[%emt 0:00:00]} 46. Ra5 {
[%emt 0:00:00]} Bb7 {[%emt 0:00:00]} 47. Ra4 {[%emt 0:00:00]} Be5 {[%emt 0:00:
00]} 48. Re1 {[%emt 0:00:00]} Rhh3 {[%emt 0:00:00]} 49. Nd3 {[%emt 0:00:00]}
Re3 {[%emt 0:00:38]} 50. Rxe3 {[%emt 0:00:00]} Rxe3 {[%emt 0:00:00]} 51. Nxe5 {
[%emt 0:00:00]} Kxe5 {[%emt 0:00:00]} 52. Kb2 {[%emt 0:00:00]} Kd6 {[%emt 0:00:
00]} 53. Rc4 {[%emt 0:00:00]} Bc6 {[%emt 0:00:00]} 54. Rc3 {[%emt 0:00:00]} Re8
{[%emt 0:00:00]} 55. Rd3+ {[%emt 0:00:00]} Kc5 {[%emt 0:00:00]} 56. Rc3+ {
[%emt 0:00:00]} Kb6 {[%emt 0:00:00]} 57. Rb3+ {[%emt 0:00:00]} Ka5 {[%emt 0:00:
00]} 58. Rc3 {[%emt 0:00:00]} Bb5 {[%emt 0:00:00]} 59. Rb3 {[%emt 0:01:36]} Ba4
{[%emt 0:00:00]} 60. Rc3 {[%emt 0:00:00]} Rb8+ {[%emt 0:00:00]} 61. Kc1 {
[%emt 0:00:00]} Rb7 {[%emt 0:00:00]} 62. Rc4 {[%emt 0:00:00]} Bd7 {[%emt 0:00:
00]} 63. Rd4 {[%emt 0:00:00]} Be6 {[%emt 0:00:00]} 64. Re4 {[%emt 0:00:00]} Bf5
{[%emt 0:00:00]} 65. Rc4 {[%emt 0:00:00]} Bh7 {[%emt 0:00:00]} 66. Rc6 {
[%emt 0:00:00]} Kb5 {[%emt 0:00:00]} 67. Rc3 {[%emt 0:00:00]} Ka4 {[%emt 0:00:
00]} 68. Rc6 {[%emt 0:00:00]} a5 {[%emt 0:00:00]} 69. Rc5 {[%emt 0:00:00]} Bg8
{[%emt 0:00:00]} 70. Kd2 {[%emt 0:00:00]} Rb1 {[%emt 0:00:00]} 71. Rg5 {
[%emt 0:00:00]} Be6 {[%emt 0:00:00]} 72. Re5 {[%emt 0:00:00]} Bd7 {[%emt 0:00:
00]} 73. Re3 {[%emt 0:00:02]} Bb5 {[%emt 0:00:00]} 74. Rg3 {[%emt 0:00:05]} Ra1
{[%emt 0:00:00]} 75. Rf3 {[%emt 0:00:00]} Ba6 {[%emt 0:00:00]} 76. Rf6 {
[%emt 0:00:00]} Bb5 {[%emt 0:00:00]} 77. Rf3 {[%emt 0:00:00]} Bc6 {[%emt 0:00:
00]} 78. Rc3 {[%emt 0:00:00]} Ba8 {[%emt 0:00:00]} 79. Rc8 {[%emt 0:00:00]} Bh1
{[%emt 0:00:00]} 80. Rc3 {[%emt 0:00:00]} Rxa3 {[%emt 0:00:00]} 81. Rc4+ {
[%emt 0:01:26]} Kb5 {[%emt 0:00:00]} 82. Rh4 {[%emt 0:00:00]} Bd5 {[%emt 0:00:
00]} 83. Kc1 {[%emt 0:00:00]} Rg3 {[%emt 0:00:00]} 84. Rh5 {[%emt 0:00:07]} Kc5
{[%emt 0:00:00]} 85. Rf5 {[%emt 0:00:08]} a4 {[%emt 0:00:00]} 86. Rf1 {[%emt 0:
00:00]} Bc4 {[%emt 0:00:00]} 87. Rh1 {[%emt 0:00:00]} Kb4 {[%emt 0:00:00]} 88.
Kb2 {[%emt 0:00:00]} Rg2 {[%emt 0:00:00]} 89. Re1 {[%emt 0:00:00]} Bd3 {
[%emt 0:00:00]} 90. Rc1 {[%emt 0:00:00]} Bg6 {[%emt 0:00:00]} 91. Ka1 {[%emt 0:
00:00]} Bxc2 {[%emt 0:00:00]} 92. Rh1 {[%emt 0:00:00]} Bb3 {[%emt 0:00:00]} 93.
Re1 {[%emt 0:00:00]} Ka3 {[%emt 0:00:00]} 94. Rc1 {[%emt 0:00:00]} Bc2 {
[%emt 0:00:00]} 95. Re1 {[%emt 0:00:00]} Bd3 {[%emt 0:00:00]} 0-1

[Event "Gibraltar Masters 18th"]
[Site "Gibraltar"]
[Date "2020.01.26"]
[Round "6.57"]
[White "De Haan, Eric"]
[Black "Paehtz, Elisabeth"]
[Result "1-0"]
[ECO "D43"]
[WhiteElo "2308"]
[BlackElo "2467"]
[PlyCount "93"]
[EventDate "2020.01.21"]
[EventType "swiss"]
[EventRounds "10"]
[EventCountry "GGB"]
[SourceTitle "BritBase"]
[Source "John Saunders"]
[SourceDate "2021.06.05"]
[SourceVersion "1"]
[SourceVersionDate "2021.06.05"]
[SourceQuality "1"]
[TimeControl "40/100:0"]

1. d4 {[%emt 3:03:39]} d5 {[%emt 0:00:05]} 2. c4 {[%emt 0:00:10]} e6 {[%emt 0:
00:03]} 3. Nc3 {[%emt 0:00:33]} c6 {[%emt 0:00:04]} 4. Nf3 {[%emt 0:01:26]} Nf6
{[%emt 0:00:10]} 5. Bg5 {[%emt 0:00:19]} h6 {[%emt 0:00:03]} 6. Bh4 {[%emt 0:
01:25]} dxc4 {[%emt 0:00:05]} 7. e4 {[%emt 0:00:59]} g5 {[%emt 0:00:05]} 8. Bg3
{[%emt 0:00:06]} b5 {[%emt 0:00:01]} 9. h4 {[%emt 0:02:14]} g4 {[%emt 0:01:37]}
10. Ne5 {[%emt 0:02:57]} Rg8 {[%emt 0:00:15]} 11. h5 {[%emt 0:20:54]} Qa5 {
[%emt 0:20:54]} 12. Qc2 {[%emt 0:09:46]} Nfd7 {[%emt 0:02:28]} 13. O-O-O {
[%emt 0:10:35]} Nxe5 {[%emt 0:00:08]} 14. Bxe5 {[%emt 0:00:06]} Nd7 {[%emt 0:
02:47]} 15. Bf4 {[%emt 0:02:02]} e5 {[%emt 0:17:11]} 16. Be3 {[%emt 0:17:13]}
Bb7 {[%emt 0:04:14]} 17. dxe5 {[%emt 0:02:41]} Nxe5 {[%emt 0:11:44]} 18. f4 {
[%emt 0:00:57]} Nd7 {[%emt 0:12:39]} 19. e5 {[%emt 0:00:28]} O-O-O {[%emt 0:00:
19]} 20. Be2 {[%emt 0:03:19]} Bc5 {[%emt 0:03:44]} 21. Bxc5 {[%emt 0:01:16]}
Nxc5 {[%emt 0:00:03]} 22. Qf5+ {[%emt 0:00:33]} Kb8 {[%emt 0:00:29]} 23. Qxf7 {
[%emt 0:00:50]} Rdf8 {[%emt 0:08:16]} 24. Qe7 {[%emt 0:01:25]} b4 {[%emt 0:00:
49]} 25. Bxc4 {[%emt 0:05:32]} bxc3 {[%emt 0:00:05]} 26. Bxg8 {[%emt 0:00:05]}
cxb2+ {[%emt 0:00:53]} 27. Kb1 {[%emt 0:02:25]} Rxg8 {[%emt 0:00:04]} 28. Qd6+
{[%emt 0:01:09]} Ka8 {[%emt 0:00:53]} 29. Qd2 {[%emt 0:00:06]} Qa6 {[%emt 0:05:
56]} 30. f5 {[%emt 0:01:05]} Ne4 {[%emt 0:01:13]} 31. Qc2 {[%emt 0:00:35]} c5 {
[%emt 0:03:08]} 32. Rhe1 {[%emt 0:00:11]} Qc6 {[%emt 0:00:03]} 33. f6 {[%emt 0:
01:02]} a6 {[%emt 0:02:51]} 34. Qc4 {[%emt 0:01:02]} Rf8 {[%emt 0:01:11]} 35.
f7 {[%emt 0:00:48]} Bc8 {[%emt 0:11:10]} 36. Qxe4 {[%emt 0:00:19]} Qxe4+ {
[%emt 0:00:03]} 37. Rxe4 {[%emt 0:00:06]} Bf5 {[%emt 0:00:01]} 38. e6 {[%emt 0:
00:10]} Bxe4+ {[%emt 0:01:41]} 39. Kxb2 {[%emt 0:00:05]} Bc6 {[%emt 0:00:03]}
40. Rd8+ {[%emt 0:02:20]} Rxd8 {[%emt 0:00:04]} 41. e7 {[%emt 0:00:01]} Re8 {
[%emt 0:00:51]} 42. f8=Q {[%emt 0:00:13]} Kb7 {[%emt 0:00:02]} 43. Kc3 {
[%emt 0:12:25]} Kc7 {[%emt 0:00:12]} 44. Qf4+ {[%emt 0:00:35]} Kd7 {[%emt 0:03:
43]} 45. Qxg4+ {[%emt 0:00:41]} Kxe7 {[%emt 0:00:03]} 46. Qg7+ {[%emt 0:00:18]}
Kd8 {[%emt 0:00:06]} 47. Qxh6 {[%emt 0:00:59]} 1-0

[Event "Gibraltar Masters 18th"]
[Site "Gibraltar"]
[Date "2020.01.27"]
[Round "7.1"]
[White "Wang, Hao"]
[Black "Praggnanandhaa, Rameshbabu"]
[Result "1-0"]
[ECO "A28"]
[WhiteElo "2758"]
[BlackElo "2602"]
[PlyCount "111"]
[EventDate "2020.01.21"]
[EventType "swiss"]
[EventRounds "10"]
[EventCountry "GGB"]
[SourceTitle "BritBase"]
[Source "John Saunders"]
[SourceDate "2021.06.05"]
[SourceVersion "1"]
[SourceVersionDate "2021.06.05"]
[SourceQuality "1"]
[TimeControl "40/100:0"]
[WhiteClock "0:21:18"]
[BlackClock "0:37:13"]

1. c4 {[%emt 0:00:00]} e5 {[%emt 0:00:00]} 2. Nc3 {[%emt 0:00:00]} Nf6 {
[%emt 0:00:00]} 3. Nf3 {[%emt 0:00:00]} Nc6 {[%emt 0:00:00]} 4. e3 {[%emt 0:00:
00]} Bb4 {[%emt 0:00:00]} 5. Qc2 {[%emt 0:00:00]} Bxc3 {[%emt 0:00:00]} 6. bxc3
{[%emt 0:00:00]} d6 {[%emt 0:00:00]} 7. e4 {[%emt 0:00:00]} O-O {[%emt 0:00:00]
} 8. g3 {[%emt 0:00:00]} Nd7 {[%emt 0:00:00]} 9. Bg2 {[%emt 0:00:00]} Nc5 {
[%emt 0:00:00]} 10. Nh4 {[%emt 0:00:00]} a6 {[%emt 0:00:00]} 11. O-O {[%emt 0:
00:00]} b5 {[%emt 0:00:00]} 12. d4 {[%emt 0:00:00]} exd4 {[%emt 0:00:00]} 13.
cxd4 {[%emt 0:00:00]} Nxd4 {[%emt 0:00:00]} 14. Qb2 {[%emt 0:00:00]} Nc6 {
[%emt 0:00:00]} 15. e5 {[%emt 0:00:00]} Bd7 {[%emt 0:00:00]} 16. exd6 {[%emt 0:
00:00]} cxd6 {[%emt 0:00:00]} 17. Qd2 {[%emt 0:00:00]} Rc8 {[%emt 0:00:00]} 18.
cxb5 {[%emt 0:00:00]} Ne5 {[%emt 0:00:00]} 19. bxa6 {[%emt 0:00:00]} Bb5 {
[%emt 0:00:00]} 20. Rd1 {[%emt 0:00:00]} Ba4 {[%emt 0:00:00]} 21. Re1 {[%emt 0:
00:00]} Ncd3 {[%emt 0:00:00]} 22. Rf1 {[%emt 0:00:00]} Rc2 {[%emt 0:00:00]} 23.
Qe3 {[%emt 0:00:00]} Nc5 {[%emt 0:00:00]} 24. a7 {[%emt 0:00:00]} Bc6 {[%emt 0:
00:00]} 25. Bxc6 {[%emt 0:00:00]} Nxc6 {[%emt 0:00:00]} 26. Qf3 {[%emt 0:00:00]
} Nd4 {[%emt 0:00:00]} 27. Qd5 {[%emt 0:00:00]} Ne2+ {[%emt 0:00:00]} 28. Kg2 {
[%emt 0:00:00]} Nc3 {[%emt 0:00:00]} 29. Qf3 {[%emt 0:00:00]} Qa8 {[%emt 0:00:
00]} 30. Nf5 {[%emt 0:00:00]} Qxa7 {[%emt 0:00:00]} 31. Bf4 {[%emt 0:00:00]}
Ne6 {[%emt 0:01:00]} 32. Bxd6 {[%emt 0:00:00]} Ng5 {[%emt 0:00:03]} 33. Qc6 {
[%emt 0:00:00]} Qa8 {[%emt 0:00:00]} 34. Qxa8 {[%emt 0:00:00]} Rxa8 {[%emt 0:
00:00]} 35. a3 {[%emt 0:00:00]} Nge4 {[%emt 0:00:00]} 36. Rac1 {[%emt 0:00:41]}
Rxc1 {[%emt 0:00:05]} 37. Rxc1 {[%emt 0:00:00]} g6 {[%emt 0:00:00]} 38. Ne7+ {
[%emt 0:00:00]} Kf8 {[%emt 0:00:00]} 39. Nxg6+ {[%emt 0:00:18]} Kg7 {[%emt 0:
00:00]} 40. Nh4 {[%emt 0:00:08]} Nxd6 {[%emt 0:00:00]} 41. Rxc3 {[%emt 0:01:16]
} Nb5 {[%emt 0:01:08]} 42. Rc6 {[%emt 0:00:00]} Nxa3 {[%emt 0:00:00]} 43. Nf5+
{[%emt 0:00:00]} Kg8 {[%emt 0:00:00]} 44. Rc7 {[%emt 0:00:00]} Rf8 {[%emt 0:00:
00]} 45. Kf3 {[%emt 0:00:00]} Nb1 {[%emt 0:00:00]} 46. Ke3 {[%emt 0:00:00]}
Re8+ {[%emt 0:00:00]} 47. Kf4 {[%emt 0:00:00]} Nd2 {[%emt 0:00:00]} 48. f3 {
[%emt 0:00:00]} Rf8 {[%emt 0:00:00]} 49. h4 {[%emt 0:00:00]} Kh8 {[%emt 0:00:
00]} 50. h5 {[%emt 0:00:00]} Kg8 {[%emt 0:00:00]} 51. g4 {[%emt 0:00:00]} Kh8 {
[%emt 0:00:00]} 52. g5 {[%emt 0:00:00]} Kg8 {[%emt 0:00:00]} 53. Nh6+ {[%emt 0:
00:00]} Kg7 {[%emt 0:00:00]} 54. Kg4 {[%emt 0:00:00]} Nf1 {[%emt 0:00:00]} 55.
Nf5+ {[%emt 0:00:00]} Kg8 {[%emt 0:00:00]} 56. Rd7 {[%emt 0:00:00]} 1-0